Cogmind - Beta 13 @@@ ROGUE MODE // 2024.07.24 @ 17:48:39 Player: jimmyl Result: Self-destructed Performance ------------- Evolutions (3) 1500 Regions Visited (6) 1200 Robots Destroyed (82) 410 Value Destroyed (2530) 2530 Prototype IDs (8) 160 Alien Tech Used (0) 0 Bonus (-1288) -1288 TOTAL SCORE: 4512 Bonus ------- High Alert Combat Kills 52 Friendly Fire -1340 Cogmind --------- Core Integrity 590/700 Matter 116/300 Energy 290/290 System Corruption 2% Temperature Cool (9) Movement Walking (190) Ox1 Location -7/Factory Parts ------- > --- POWER (2) -------- Improved Deuterium Engine > --- PROPULSION (2) --- Aluminum Leg Carbon-fiber Leg > --- UTILITY (6) ------ Improved Heat Sink Advanced Visual Processing Unit Improved Signal Interpreter Improved Targeting Computer Hardened Light Armor Plating > --- WEAPON (3) ------- Plasma Cannon Heavy Assault Cannon > --- INVENTORY (5) ---- Compact Wheel YI-UF0's Bottomless Matter Pit (890) Pulse Rifle Gauss Rifle Rocket Launcher Peak State ------------ > --- POWER ------------ Light Nuclear Core > --- PROPULSION ------- Armored Treads Wheel > --- UTILITY ---------- Improved Heat Sink Advanced Visual Processing Unit Experimental Sensor Array Terrain Scan Processor Improved Targeting Computer Hardened Light Armor Plating > --- WEAPON ----------- Improved EM Pulse Cannon Plasma Cannon Gauss Rifle > --- INVENTORY -------- Carbon-fiber Leg YI-UF0's Bottomless Matter Pit Particle Gun Rocket Launcher [Rating: 41] Favorites ----------- Power Ion Engine Engine Ion Engine Power Core Light Nuclear Core Propulsion Improved Aluminum Leg Treads Armored Treads Leg Improved Aluminum Leg Wheel Wheel Utility Improved Targeting Computer Device Improved Heat Sink Storage Medium Storage Unit Processor Improved Targeting Computer Protection Hardened Light Armor Plating Weapon Beam Cannon Energy Gun Medium Laser Energy Cannon Beam Cannon Ballistic Gun Light Assault Rifle Ballistic Cannon Heavy Assault Cannon Launcher Rocket Launcher Build | -11 -10 -10 -10 -9 -8 -7 ------- Run | Yrd Mat Min Exi Min Mat Fac Slots Evolved 6 | . . . . . 4 2 Power 1 | . . . . . . 1 Propulsion . | . . . . . . . Utility 4 | . . . . . 4 . Weapon 1 | . . . . . . 1 Parts Attached 57 | . 8 . 1 1 38 9 Power 5 | . . . 1 . 3 1 Engine 2 | . . . 1 . . 1 Core 3 | . . . . . 3 . Reactor . | . . . . . . . Propulsion 11 | . 2 . . . 7 2 Treads 3 | . . . . . 3 . Leg 7 | . 2 . . . 3 2 Wheel 1 | . . . . . 1 . Hover . | . . . . . . . Flight . | . . . . . . . Utility 16 | . 3 . . 1 9 3 Device 6 | . . . . . 5 1 Storage 2 | . 1 . . . 1 . Processor 5 | . 1 . . 1 2 1 Hackware . | . . . . . . . Protection 3 | . 1 . . . 1 1 Artifact . | . . . . . . . Weapon 25 | . 3 . . . 19 3 Energy Gun 4 | . . . . . 4 . Energy Cannon 6 | . 3 . . . 2 1 Ballistic Gun 11 | . . . . . 10 1 Ballistic Cannon 1 | . . . . . . 1 Launcher 3 | . . . . . 3 . Special Weapon . | . . . . . . . Impact Weapon . | . . . . . . . Slashing Weapon . | . . . . . . . Piercing Weapon . | . . . . . . . Special Melee Weapon . | . . . . . . . Unidentified Prototypes 6 | . . . . . 6 . Parts Lost 17 | . 2 . . . 11 4 Power 4 | . . . . . 3 1 Propulsion 6 | . . . . . 4 2 Utility 4 | . 1 . . . 2 1 Weapon 3 | . 1 . . . 2 . Highest Loss Streak 2 | . 2 . . . 2 2 To Critical Strikes . | . . . . . . . Average Slot Usage (%) 89 | . 97 100 100 100 88 78 Engine 6 | . 14 14 14 14 3 1 Core 2 | . . . . . 3 5 Treads 2 | . . . . . 4 5 Leg 15 | . 28 28 28 28 11 3 Device 7 | . . . . . 11 14 Storage 8 | . 14 14 14 14 8 . Processor 19 | . 5 14 14 14 25 23 Protection 3 | . 5 . . . 1 6 Energy Gun 2 | . 7 . . . 3 . Energy Cannon 13 | . 20 28 28 28 5 8 Ballistic Gun 3 | . . . . . 8 1 Ballistic Cannon 1 | . . . . . . 5 Naked Turns . | . . . . . . . Heaviest Build 36 | 13 21 21 21 21 25 36 Greatest Support 40 | 20 26 26 26 26 40 25 Greatest Overweight (x) 2 | . . . . . 2 2 Average Overweight (x) . | . . . . . . 1 Largest Inventory Capacity 10 | 8 10 10 10 10 10 5 Average Capacity 8 | 8 8 10 10 10 9 5 Most Carried 10 | 6 8 10 10 10 10 5 Average Carried 7 | 6 7 9 9 9 7 4 Final Capacity 10 | 8 10 10 10 10 5 5 Final Carried 10 | 6 8 10 9 10 5 5 Class Distribution -------------------- 60% | Mutant 35% | Skirmisher 3% | Gunner Dominant Class ---------------- Mutant | -10/Materials Mutant | -10/Mines Mutant | -10/Exiles Mutant | -9/Mines Mutant | -8/Materials Skirmisher | -7/Factory Resources | -11 -10 -10 -10 -9 -8 -7 ----------- Run | Yrd Mat Min Exi Min Mat Fac Matter Collected 2011 | 200 119 . . 20 1450 222 Remotely . | . . . . . . . Salvage Created 3071 | . 673 120 . . 1738 540 Parts 163 | . 33 5 . . 99 26 Haulers Intercepted 4 | . 2 . . . 2 . Recyclers Shooed 2 | . 1 . . . 1 . Parts Field Recycled . | . . . . . . . Retrieved Matter . | . . . . . . . Parts Self-Destructed . | . . . . . . . Prevented . | . . . . . . . Kills | -11 -10 -10 -10 -9 -8 -7 ------- Run | Yrd Mat Min Exi Min Mat Fac Combat Hostiles Destroyed 56 | . 14 1 . . 33 8 Guns 14 | . 3 . . . 10 1 Cannons 33 | . 11 1 . . 14 7 AOE 8 | . . . . . 8 . Classes Destroyed 12 | . 6 . . . 5 1 Worker 6 | . 1 . . . 3 2 Builder 2 | . . . . . 1 1 Tunneler 1 | . . . . . 1 . Hauler 4 | . 2 . . . 2 . Recycler 3 | . . . . . 1 2 Operator 2 | . 1 . . . 1 . Watcher 7 | . 3 . . . 2 2 Swarmer 10 | . 3 1 . . 6 . Grunt 35 | . 11 . . . 21 3 Sentry 5 | . . . . . 5 . Hunter 1 | . . . . . 1 . Programmer 5 | . . . . . . 5 Best Kill Streak 10 | . 4 1 . . 10 4 Combat Bots Only 8 | . 4 1 . . 8 2 Max Kills in Single Turn 4 | . 1 1 . . 4 1 Gunslinging 1 | . . . . . 1 . Exploded 3 | . . . . . 3 . Melee . | . . . . . . . Uniques/NPCs Destroyed 1 | . . 1 . . . . YI-UF0 (-10/Mines) Combat | -11 -10 -10 -10 -9 -8 -7 -------- Run | Yrd Mat Min Exi Min Mat Fac Hostile Shots Fired 320 | . 65 3 . . 190 62 Missed 77 | . 23 . . . 43 11 Damage Taken 3806 | . 449 26 . . 2532 799 Core 638 | . 63 10 . . 455 110 Absorbed by Shields . | . . . . . . . Redirected to Shielding 50 | . 50 . . . . . Regen/Repaired (Parts) 53 | . . . . . 53 . Core Remaining (%) 62 | 100 . . . 70 17 . Volleys Fired 235 | . 45 15 . . 122 53 Largest 3 | . 2 2 . . 2 3 Hottest 177 | . 120 120 . . 120 177 Shots Fired 429 | . 90 25 . . 228 86 Gun 168 | . 32 . . . 132 4 Cannon 249 | . 58 25 . . 84 82 Launcher 12 | . . . . . 12 . Special . | . . . . . . . Kinetic 115 | . . . . . 73 42 Thermal 277 | . 90 25 . . 119 43 Explosive 4 | . . . . . 4 . Electromagnetic 33 | . . . . . 32 1 Robot Hit Streak 16 | . 6 8 . . 15 16 Robot Miss Streak 5 | . 3 1 . . 2 5 Penetration Max 1 | . . . . . . 1 Secondary Targets 2 | . . . . . 2 . Max Gunslinging Chain 1 | . . . . . 1 . Shots Hit Robots 283 | . 50 20 . . 169 44 Core Hits 124 | . 26 5 . . 79 14 Critical Kills . | . . . . . . . Critical Parts Destroyed 1 | . . . . . 1 . Critical Strikes 6 | . 3 . . . 1 2 Burn 3 | . 3 . . . . . Destroy 1 | . . . . . 1 . Blast 2 | . . . . . . 2 Melee Attacks . | . . . . . . . Impact . | . . . . . . . Slashing . | . . . . . . . Piercing . | . . . . . . . Sneak Attacks . | . . . . . . . Combat Hostiles . | . . . . . . . Follow-up Attacks . | . . . . . . . Damage Inflicted 6999 | . 878 352 . . 3814 1955 Guns 1845 | . 239 . . . 1555 51 Cannons 4093 | . 628 352 . . 1225 1888 Explosions 1033 | . . . . . 1033 . Melee . | . . . . . . . Ramming 28 | . 11 . . . 1 16 Kinetic 1847 | . . . . . 592 1255 Thermal 3752 | . 867 352 . . 1854 679 Explosive 517 | . . . . . 517 . Electromagnetic 855 | . . . . . 850 5 Impact . | . . . . . . . Slashing . | . . . . . . . Piercing . | . . . . . . . Highest Corruption 3 | . . . . . 3 2 Average Corruption 2 | . . . . . 2 1 Corruption Purged . | . . . . . . . Corruption Blocked . | . . . . . . . Effects 19 | . . . . . 15 4 Message Errors 6 | . . . . . 4 2 Matter Fused 2 | . . . . . 2 . Heat Flow Errors 3 | . . . . . 2 1 Energy Discharges 5 | . . . . . 4 1 Data Loss (minor) 1 | . . . . . 1 . Data Loss (major) 1 | . . . . . 1 . Alerts 1 | . . . . . 1 . Overload Shots . | . . . . . . . Overflow Damage 338 | . . 2 . . 33 303 Projectiles 305 | . . 2 . . . 303 Explosions 33 | . . . . . 33 . Melee . | . . . . . . . Knockbacks 7 | . . . . . . 7 Impact . | . . . . . . . Kinetic 7 | . . . . . . 7 Secondary . | . . . . . . . Self-Inflicted Damage 305 | . . . . . 302 3 Shots 9 | . . . . . 9 . Rammed 1 | . . . . . . 1 Targets Rammed 6 | . 2 . . . 1 3 Kicked 5 | . 2 . . . 1 2 Crushed . | . . . . . . . Highest Temperature 403 | . 403 300 . . 324 93 Average Temperature 97 | . 153 127 . . 62 29 Received Heat Transfer 1524 | . 210 . . . 1116 198 Effects 10 | . 8 2 . . . . Shutdowns 1 | . 1 . . . . . Energy Bleed 2 | . 2 . . . . . Interference 5 | . 3 2 . . . . Matter Decay 1 | . 1 . . . . . Damage (minor) 1 | . 1 . . . . . Siege Activations . | . . . . . . . Robots Corrupted 1 | . . . . . 1 . Combat Hostiles 1 | . . . . . 1 . Parts Fried 7 | . . . . . 7 . Impact Corruptions . | . . . . . . . Robots Melted . | . . . . . . . Combat Hostiles . | . . . . . . . Parts Melted 13 | . 5 . . . 5 3 Heat Transferred 7875 | . 2257 740 . . 3628 1250 Parts Sabotaged . | . . . . . . . Parts Stolen . | . . . . . . . Parts Stripped . | . . . . . . . Power Chain Reactions 3 | . . . . . 3 . Alert | -11 -10 -10 -10 -9 -8 -7 ------- Run | Yrd Mat Min Exi Min Mat Fac Peak Influence 609 | . 228 83 . . 609 296 Initial 276 | . . 33 . . . 276 Average 130 | . 96 42 . . 165 151 Maximum Alert Level 2 | . 1 . . . 2 1 Low Security (%) 82 | 100 93 100 . 100 77 73 Level 1 11 | . 6 . . . 7 26 Level 2 5 | . . . . . 14 . Level 3 . | . . . . . . . Level 4 . | . . . . . . . Level 5 . | . . . . . . . High Security . | . . . . . . . Max Security . | . . . . . . . Squads Dispatched 15 | . 5 . . . 4 6 Investigation 5 | . 2 . . . 1 2 Extermination 3 | . . . . . . 3 Reinforcement 7 | . 3 . . . 3 1 Assault . | . . . . . . . Garrison . | . . . . . . . Intercept . | . . . . . . . Searches Triggered . | . . . . . . . Construction Impeded 2 | . . . . . 2 . Haulers Reinforced . | . . . . . . . Active Scanning Responses . | . . . . . . . Cargo Convoy Interrupts . | . . . . . . . Stealth | -11 -10 -10 -10 -9 -8 -7 --------- Run | Yrd Mat Min Exi Min Mat Fac Distress Signals . | . . . . . . . Communications Jammed . | . . . . . . . Distress Signals . | . . . . . . . Times Spotted 89 | . 21 3 . . 45 20 Peak Tracking Total 7 | . 5 3 . . 7 3 Tactical Retreats 8 | . . 1 . . 6 1 Traps | -11 -10 -10 -10 -9 -8 -7 ------- Run | Yrd Mat Min Exi Min Mat Fac Traps Triggered 3 | . 1 . . . 1 1 Indirectly . | . . . . . . . Trap Hack Attempts . | . . . . . . . Triggered . | . . . . . . . Disarmed . | . . . . . . . Reprogrammed . | . . . . . . . Reused . | . . . . . . . Traps Extracted . | . . . . . . . Installed . | . . . . . . . Triggered . | . . . . . . . Machines | -11 -10 -10 -10 -9 -8 -7 ---------- Run | Yrd Mat Min Exi Min Mat Fac Machines Disabled 9 | . . . . . 6 3 Max in Single Turn 2 | . . . . . 2 1 Machines Repaired . | . . . . . . . Machines Dismantled . | . . . . . . . Machines Sabotaged . | . . . . . . . Overloaded Fab Kills . | . . . . . . . Hacking | -11 -10 -10 -10 -9 -8 -7 --------- Run | Yrd Mat Min Exi Min Mat Fac Machines Accessed 10 | . 1 . 2 . 4 3 Terminals 5 | . 1 . . . 2 2 Fabricators 1 | . . . . . . 1 Repair Stations 1 | . . . . . 1 . Recycling Units . | . . . . . . . Scanalyzers 1 | . . . . . 1 . Garrison Access . | . . . . . . . Total Hacks 26 | . 5 . 2 . 12 7 Successful 11 | . 1 . 2 . 7 1 Failed 15 | . 4 . . . 5 6 Catastrophic 3 | . . . . . 1 2 Database Lockouts . | . . . . . . . Manual 4 | . 1 . . . 1 2 Terminals 16 | . 5 . . . 6 5 Fabricators 2 | . . . . . . 2 Repair Stations 4 | . . . . . 4 . Recycling Units . | . . . . . . . Scanalyzers 2 | . . . . . 2 . Garrison Access . | . . . . . . . Terminal Hacks 5 | . 1 . 2 . 2 . Record 2 | . . . 2 . . . Prototype ID Bank 1 | . . . . . 1 . Hauler Manifests 1 | . 1 . . . . . Registered Components 1 | . . . . . 1 . Fabricator Hacks 1 | . . . . . . 1 Network Status 1 | . . . . . . 1 Repair Station Hacks 4 | . . . . . 4 . Scan Component 2 | . . . . . 2 . Repair 2 | . . . . . 2 . Recycling Unit Hacks . | . . . . . . . Scanalyzer . | . . . . . . . Garrison Access Hacks . | . . . . . . . Unauthorized Hacks 1 | . . . . . 1 . Terminals 1 | . . . . . 1 . Track 1 | . . . . . 1 . Fabricators . | . . . . . . . Repair Stations . | . . . . . . . Recycling Units . | . . . . . . . Scanalyzers . | . . . . . . . Garrison Access . | . . . . . . . Data Cores Recovered . | . . . . . . . Used . | . . . . . . . Hacking Detections 8 | . 1 . . . 4 3 Full Trace Events 3 | . 1 . . . . 2 Feedback Events . | . . . . . . . Feedback Blocked . | . . . . . . . Robot Schematics Acquired . | . . . . . . . Robots Built . | . . . . . . . Authchips . | . . . . . . . Time . | . . . . . . . Total Robot Build Rating . | . . . . . . . Part Schematics Acquired . | . . . . . . . Parts Built . | . . . . . . . Authchips . | . . . . . . . Time . | . . . . . . . Total Part Build Rating . | . . . . . . . Parts Repaired 2 | . . . . . 2 . Time 140 | . . . . . 140 . Parts Recycled . | . . . . . . . Recycled Matter . | . . . . . . . Retrieved Matter . | . . . . . . . Retrieved Components . | . . . . . . . Parts Scanalyzed . | . . . . . . . Part Schematics Acquired . | . . . . . . . Parts Damaged . | . . . . . . . Bothacking | -11 -10 -10 -10 -9 -8 -7 ------------ Run | Yrd Mat Min Exi Min Mat Fac Used RIF Installer . | . . . . . . . Robots Hacked . | . . . . . . . Non-combat . | . . . . . . . Combat . | . . . . . . . Robot Hacks Applied . | . . . . . . . Relay Couplers Released . | . . . . . . . Fabnet Peak Effective % . | . . . . . . . Robots Rewired . | . . . . . . . Allies Hacked . | . . . . . . . Hacks Repelled . | . . . . . . . Allies | -11 -10 -10 -10 -9 -8 -7 -------- Run | Yrd Mat Min Exi Min Mat Fac Total Allies . | . . . . . . . Largest Group . | . . . . . . . Highest-Rated Group . | . . . . . . . Highest-Rated Ally . | . . . . . . . Total Orders . | . . . . . . . Ally Attacks . | . . . . . . . Total Damage . | . . . . . . . Kills . | . . . . . . . Allies Corrupted . | . . . . . . . Allies Melted . | . . . . . . . Intel | -11 -10 -10 -10 -9 -8 -7 ------- Run | Yrd Mat Min Exi Min Mat Fac Robot Analysis Total . | . . . . . . . Derelict Logs Recovered 2 | . . 1 . 1 . . Drone Launches . | . . . . . . . Drone Recoveries . | . . . . . . . Exploration | -11 -10 -10 -10 -9 -8 -7 ------------- Run | Yrd Mat Min Exi Min Mat Fac Turns Passed 5484 | 3 969 559 377 136 1917 1523 Spaces Moved 2800 | 3 629 394 313 81 859 521 Core . | . . . . . . . Treads 539 | . . . . . 216 323 Legs 2155 | 3 629 394 313 81 595 140 Wheels 106 | . . . . . 48 58 Hover . | . . . . . . . Flight . | . . . . . . . Fastest Speed 110 | 120 120 120 120 120 110 110 Average Speed 141 | 120 120 120 120 120 135 211 Slowest Speed 250 | 120 120 120 120 120 250 250 Overloaded Moves . | . . . . . . . Propulsion Burnouts . | . . . . . . . Robots Hopped . | . . . . . . . Cave-ins Triggered . | . . . . . . . Exploration Rate (%) 47 | 2 90 71 76 24 57 14 Regions Visited 6 Branch Regions 3 Pre-discovered Areas . | . . . . . . . Known Exits Taken . | . . . . . . . Unknown Exits Taken 6 | 1 1 1 1 1 1 . Scrap Searched 1 | . . 1 . . . . Spaces Dug 4 | . . . . . . 4 Terrain Destroyed 84 | . . . . . 64 20 Melee . | . . . . . . . Projectile 21 | . . . . . 1 20 AOE 63 | . . . . . 63 . Terrain Rammed . | . . . . . . . Walls Destroyed . | . . . . . . . Machines Disabled . | . . . . . . . Actions | -11 -10 -10 -10 -9 -8 -7 --------- Run | Yrd Mat Min Exi Min Mat Fac Total 3879 | 2 755 455 314 119 1397 837 Wait 708 | . 56 45 . 36 332 239 Move 2794 | 2 628 393 312 80 858 521 Hop . | . . . . . . . Pick Up 41 | . 9 2 . 2 23 5 Fast Attach 8 | . 1 . . . 3 4 Attach 35 | . 3 . . . 27 5 Detach 6 | . . . . . 5 1 Swap 15 | . 4 . 1 1 9 . Drop 29 | . 7 . 1 . 17 4 Fire 235 | . 45 15 . . 122 53 Melee . | . . . . . . . Ram 1 | . . . . . . 1 Kick 5 | . 2 . . . 1 2 Crush . | . . . . . . . Escape Stasis 2 | . . . . . . 2 Rewire . | . . . . . . . Trap . | . . . . . . . Miscellaneous . | . . . . . . . Route ------- -11/Scrapyard -10/Materials (discovered 4 exits: [*Mat x3] / [*Min]) -10/Mines (discovered 2 exits: [*Mat] / *Exi) -10/Exiles -9/Mines -8/Materials (discovered 2 exits: *Fac x2) -7/Factory History --------- Turn | Location | Event 1 | -11/Scrapyard | Discovered new exit (range 0) 4 | -11/Scrapyard | Entered Materials 153 | -10/Materials | Discovered new exit (range 5) 315 | -10/Materials | Build established: Mutant 643 | -10/Materials | Discovered new exit (range 16) 776 | -10/Materials | Discovered new exit (range 14) 963 | -10/Materials | Discovered new exit (range 8) 973 | -10/Materials | Entered Mines 998 | -10/Mines | YI-UF0 nonchalantly dropped a Grenade Launcher on the ground 1055 | -10/Mines | Murdered YI-UF0 1055 | -10/Mines | Destroyed YI-UF0 1070 | -10/Mines | Found Prototype Storage 1081 | -10/Mines | Found a damaged Exp. Sensor Array with a note attached 1083 | -10/Mines | Found Prototype Device 1425 | -10/Mines | Discovered new exit (range 5) 1519 | -10/Mines | Learned Materials interactive machine intel 1527 | -10/Mines | Deemed a non-threat by the Exiles lab entrance 1527 | -10/Mines | Discovered new exit (range 5) 1532 | -10/Mines | Entered Exiles 1532 | -10/Exiles | Found Exiles lab abandoned 1892 | -10/Exiles | Discovered new exit (range 14) 1909 | -10/Exiles | Entered Mines 1954 | -9/Mines | Learned Materials machine intel 1993 | -9/Mines | Discovered new exit (range 14) 2010 | -9/Mines | Joined a pair of Derelicts in attacking an 0b10 outpost 2045 | -9/Mines | Entered Materials 2045 | -8/Materials | Evolved 4 slots: Utility x4 2045 | -8/Materials | Identified YI-UF0's Bottomless Matter Pit 2046 | -8/Materials | Loaded intel: 60 machine locations 2047 | -8/Materials | Loaded intel: 19 interactive machine locations 2047 | -8/Materials | Identified Exp. Sensor Array 2710 | -8/Materials | Build established: Skirmisher 2713 | -8/Materials | Repaired Exp. Sensor Array 2746 | -8/Materials | Repaired Rocket Launcher 3271 | -8/Materials | Discovered new exit (range 11) 3614 | -8/Materials | Core integrity fell below 50% 3713 | -8/Materials | Build established: Mutant 3718 | -8/Materials | Destroyed 8 combat bots 3772 | -8/Materials | Core integrity fell below 20% 3942 | -8/Materials | Discovered new exit (range 5) 3962 | -8/Materials | Entered Factory 3962 | -7/Factory | Evolved 2 slots: Power x1, Weapon x1 4345 | -7/Factory | Build established: Skirmisher 5485 | -7/Factory | Self-destructed Last Messages --------------- 05431_ K-01 Serf cleans the Pressure Siphon. 05438_ O-24 Administrator: "IFF HANDSHAKE FAILED. SECURING TERMINAL." 05440_ K-01 Serf cleans the Pressure Siphon. 05443_ ALERT: Cargo convoy en route, clear transfer corridor. 05443_ K-01 Serf collects debris. 05445_ K-01 Serf cleans the Pressure Siphon. 05448_ ALERT: Hostiles spotted, dispatching reinforcements to Terminal F006. 05449_ K-01 Serf cleans the Pressure Siphon. 05461_ Connecting with Terminal... 05461_ ALERT: Suspicious activity at Terminal F020. Dispatching Investigation squad. 05463_ K-01 Serf cleans the Pressure Siphon. 05468_ Kicked K-01 Serf. 05470_ MCLHKRYI3NUQQF1BPE<:DNVBHMO KJ 05470_ Kicked A-02 Transporter out of the way. 05473_ K-01 Serf cleans the Terminal. 05474_ K-01 Serf cleans the Pressure Siphon. Map ----- +----------------------------------------------------+ | ?????????????????????????????????????????????????? | | ?????????????????????????????????????????????????? | | ?????????????????????????????????????????????????? | | ?????????????????????????????????????????????????? | | ?????????????????????????????????????????????????? | | ?????????????????????????????????????????????????? | | ?????????????????????????????????????????????????? | | ????????????????????????????????????####+######+## | | ????????????????????????????????????# | | ?????????????????????????????######## | | ?????????????????????????????? ! | | ??????????????????????????????# | | ??????????????????????????????# """ """ """ """ " | | ??????????????????????????????#k """ """ """ """ " | | ???????????#+################## """ """ """ """ " | | ??????????? """ """ """ """ " | | ?????????? | | ?????????? | | ?????????? | | ?????????? | | ???????????????????######gg ##""T""######### ### | | ????????????????????????# ##"""""#???????# # | | ????????????????????????# k########???????# # | | ????????????????????????# #????????#####?# # | | ????????????????????????# #????????# ### # | | ????????????????????????#@ #????????# + | | ????????????????????????# #????????# ##### | | ????????????????????????# u #??????####+####?# | | ????????????????????????# aT#?????# #?# | | ????????????????????????# u #?????# """"" #?# | | ????????????????????????# ##?????# """"" #?# | | ????????????????????????# #??????# """ #?# | | ????????????????????????# #??????# #?# | | ????????????????????????# #??????#########?### | | ????????????????????????# #??????????????????? | | ????????????????????????+ +??????????????????? | | ????????????????????????# #??????????????????? | | ????????????????????????# #??????????????????? | | ????????????????????????# #??????????????????? | | ????????????????????????? #??????????????????? | | ????????????????????????? #??????????????????? | | ????????????????????????? #??????????????????? | | ????????????????????????? #??????????????????? | | ????????????????????????? ???????????????????? | | ?????????????????????????#+#?????????????????????? | | ?????????????????????????????????????????????????? | | ?????????????????????????????????????????????????? | | ?????????????????????????????????????????????????? | | ?????????????????????????????????????????????????? | | ?????????????????????????????????????????????????? | +----------------------------------------------------+ Best States ------------- Heat Dissipation 48 Energy Generation 16 Energy Capacity 290 Matter Stores 300 Matter Capacity 300 Sight Range 20 Robot Scan Range 20 Terrain Scan Range 14 Terrain Scan Density 85 Armor Coverage 150 Weapon Shielding 33 Evasion (%) 55 Targeting Accuracy 6 Recoil Reduction 2 Item Schematics ----------------- None Robot Schematics ------------------ None Fabricated ------------ Nothing Alien Tech Used ----------------- None Achievements -------------- Collateral Damage Challenges ------------ None Game ------ Seed LightMagneticCycler Manual? 0 Play Time 00:31:02 Cumulative 75.5 hours Start 2024.07.24 @ 17:19:08 End 2024.07.24 @ 17:48:39 Sessions 1 Manual Loads 0 Difficulty Rogue Special Mode None Game No. 128 Rogue 128 Adventurer 0 Explorer 0 Win Type - Total 0 Types 0/0/0/0/0/0/0/0/0 Lore% 50 Gallery% 59 Achievement% 43 Wizard Run 0 Options --------- Layout 1 ASCII 0 Keyboard 0 Movement Mouse Keybinds 0 Fullscreen 2 Font 20/SmallcapsGlow Map View 54x42 Zoom Use 0% Tactical HUD 1 Map Filters NONE Filters NONE Steam 0 RUN: 97dafc7b-64b0-4a40-baab-4474132ce2fb